Workbook

Sheet 观山湖区2023年公开选聘社区工作者面试成绩及总成绩
A1: 观山湖区2023年公开选聘社区工作者面试成绩及总成绩
A2: 姓名 | B2: 考号 | C2: 报考单位 | D2: 报考职位 | E2: 笔试成绩 | F2: 笔试成绩 （百分制） | G2: 笔试成绩 （占50%） | H2: 面试成绩 | I2: 面试成绩 （占50%） | J2: 总成绩 | K2: 综合排名 | L2: 是否进入 下一环节 | M2: 备注
A3: 王小青 | B3: 9700100514802 | C3: 01观山湖区朱昌镇 | D3: 01社区工作者 | E3: 120 | F3: =ROUND(E3/1.5,2) -> 80 | G3: =ROUND(F3*50%,2) -> 40 | H3: 83.67 | I3: =ROUND(H3*50%,2) -> 41.84 | J3: =G3+I3 -> 81.84 | K3: 1 | L3: 是
A4: 陈星宇 | B4: 9700100411430 | C4: 01观山湖区朱昌镇 | D4: 01社区工作者 | E4: 123.14 | F4: =ROUND(E4/1.5,2) -> 82.09 | G4: =ROUND(F4*50%,2) -> 41.05 | H4: 81.33 | I4: 40.67 | J4: =G4+I4 -> 81.72 | K4: 2 | L4: 是
A5: 任慧灵 | B5: 9700101732104 | C5: 01观山湖区朱昌镇 | D5: 01社区工作者 | E5: 119.1 | F5: 79.4 | G5: 39.7 | H5: 83.33 | I5: 41.67 | J5: 81.37 | K5: 3 | L5: 是
A6: 杨圣春 | B6: 9700100513218 | C6: 01观山湖区朱昌镇 | D6: 01社区工作者 | E6: 122.74 | F6: 81.83 | G6: 40.92 | H6: 80.67 | I6: 40.34 | J6: 81.26 | K6: 4 | L6: 是
A7: 李贵远 | B7: 9700100718728 | C7: 01观山湖区朱昌镇 | D7: 01社区工作者 | E7: 117.9 | F7: 78.6 | G7: 39.3 | H7: 82.67 | I7: 41.34 | J7: 80.64 | K7: 5 | L7: 是
A8: 吴月胜 | B8: 9700100617005 | C8: 01观山湖区朱昌镇 | D8: 01社区工作者 | E8: 116.6 | F8: 77.73 | G8: 38.87 | H8: 83.33 | I8: 41.67 | J8: 80.54 | K8: 6 | L8: 是
A9: 杜清芳 | B9: 9700101122825 | C9: 01观山湖区朱昌镇 | D9: 01社区工作者 | E9: 122.94 | F9: 81.96 | G9: 40.98 | H9: 79 | I9: 39.5 | J9: 80.48 | K9: 7 | L9: 是
A10: 刘飞雪 | B10: 9700101834719 | C10: 01观山湖区朱昌镇 | D10: 01社区工作者 | E10: 116.9 | F10: 77.93 | G10: 38.97 | H10: 83 | I10: 41.5 | J10: 80.47 | K10: 8
A11: 吴玲玲 | B11: 9700100204525 | C11: 01观山湖区朱昌镇 | D11: 01社区工作者 | E11: 120.37 | F11: 80.25 | G11: 40.13 | H11: 80 | I11: 40 | J11: 80.13 | K11: 9
A12: 谢廷锋 | B12: 9700101630518 | C12: 01观山湖区朱昌镇 | D12: 01社区工作者 | E12: 118.07 | F12: 78.71 | G12: 39.36 | H12: 80.67 | I12: 40.34 | J12: 79.7 | K12: 10
A13: 谢朝海 | B13: 9700101631507 | C13: 01观山湖区朱昌镇 | D13: 01社区工作者 | E13: 121.98 | F13: 81.32 | G13: 40.66 | H13: 77.33 | I13: 38.67 | J13: 79.33 | K13: 11
A14: 翁子灿 | B14: 9700100616004 | C14: 01观山湖区朱昌镇 | D14: 01社区工作者 | E14: 121.87 | F14: 81.25 | G14: 40.63 | H14: 77.33 | I14: 38.67 | J14: 79.3 | K14: 12
A15: 王娥 | B15: 9700100100302 | C15: 01观山湖区朱昌镇 | D15: 01社区工作者 | E15: 121.48 | F15: 80.99 | G15: 40.5 | H15: 76.33 | I15: 38.17 | J15: 78.67 | K15: 13
A16: 常萍 | B16: 9700100408812 | C16: 01观山湖区朱昌镇 | D16: 01社区工作者 | E16: 117.64 | F16: 78.43 | G16: 39.22 | H16: 78.67 | I16: 39.34 | J16: 78.56 | K16: 14
A17: 刘尧丽 | B17: 9700100819823 | C17: 01观山湖区朱昌镇 | D17: 01社区工作者 | E17: 116.64 | F17: 77.76 | G17: 38.88 | H17: 78.67 | I17: 39.34 | J17: 78.22 | K17: 15
A18: 段启飞 | B18: 9700100202530 | C18: 01观山湖区朱昌镇 | D18: 01社区工作者 | E18: 116.7 | F18: 77.8 | G18: 38.9 | H18: 78.33 | I18: 39.17 | J18: 78.07 | K18: 16
A19: 罗剑阳 | B19: 9700101124407 | C19: 01观山湖区朱昌镇 | D19: 01社区工作者 | E19: 117.1 | F19: 78.07 | G19: 39.04 | H19: 78 | I19: 39 | J19: 78.04 | K19: 17
A20: 韦杰 | B20: 9700101936224 | C20: 01观山湖区朱昌镇 | D20: 01社区工作者 | E20: 116.27 | F20: 77.51 | G20: 38.76 | H20: 78.33 | I20: 39.17 | J20: 77.93 | K20: 18
A21: 徐春莲 | B21: 9700100616305 | C21: 01观山湖区朱昌镇 | D21: 01社区工作者 | E21: 116.2 | F21: 77.47 | G21: 38.74 | H21: 77.67 | I21: 38.84 | J21: 77.58 | K21: 19
A22: 袁静 | B22: 9700101225304 | C22: 01观山湖区朱昌镇 | D22: 01社区工作者 | E22: 116.27 | F22: 77.51 | G22: 38.76 | H22: 77.33 | I22: 38.67 | J22: 77.43 | K22: 20
A23: 杨坤 | B23: 9700100411306 | C23: 01观山湖区朱昌镇 | D23: 01社区工作者 | E23: 120.37 | F23: 80.25 | G23: 40.13 | H23: 0 | I23: 0 | J23: 40.13 | K23: 21 | M23: 面试缺考
A24: 刘春林 | B24: 9700100616209 | C24: 01观山湖区朱昌镇 | D24: 02社区工作者 | E24: 122.91 | F24: 81.94 | G24: 40.97 | H24: 81 | I24: 40.5 | J24: 81.47 | K24: 1 | L24: 是
A25: 安贝 | B25: 9700100921306 | C25: 01观山湖区朱昌镇 | D25: 02社区工作者 | E25: 118.68 | F25: 79.12 | G25: 39.56 | H25: 81.33 | I25: 40.67 | J25: 80.23 | K25: 2 | L25: 是
A26: 吴晶 | B26: 9700100921418 | C26: 01观山湖区朱昌镇 | D26: 02社区工作者 | E26: 117.67 | F26: 78.45 | G26: 39.23 | H26: 81.67 | I26: 40.84 | J26: 80.07 | K26: 3
A27: 徐圣聪 | B27: 9700100615716 | C27: 01观山湖区朱昌镇 | D27: 02社区工作者 | E27: 120.57 | F27: 80.38 | G27: 40.19 | H27: 79.33 | I27: 39.67 | J27: 79.86 | K27: 4
A28: 高正芬 | B28: 9700100411322 | C28: 01观山湖区朱昌镇 | D28: 02社区工作者 | E28: 117.46 | F28: 78.31 | G28: 39.16 | H28: 74.67 | I28: 37.34 | J28: 76.5 | K28: 5
A29: 黄新云 | B29: 9700100412406 | C29: 01观山湖区朱昌镇 | D29: 02社区工作者 | E29: 116.3 | F29: 77.53 | G29: 38.77 | H29: 67.67 | I29: 33.84 | J29: 72.61 | K29: 6
A30: 李华松 | B30: 9700100921730 | C30: 01观山湖区朱昌镇 | D30: 03社区工作者 | E30: 113.99 | F30: 75.99 | G30: 38 | H30: 81.33 | I30: 40.67 | J30: 78.67 | K30: 1 | L30: 是
A31: 吴政辉 | B31: 9700101834924 | C31: 01观山湖区朱昌镇 | D31: 03社区工作者 | E31: 114.87 | F31: 76.58 | G31: 38.29 | H31: 62.33 | I31: 31.17 | J31: 69.46 | K31: 2
A32: 蔡进元 | B32: 9700101326419 | C32: 01观山湖区朱昌镇 | D32: 03社区工作者 | E32: 114.63 | F32: 76.42 | G32: 38.21 | H32: 0 | I32: 0 | J32: 38.21 | K32: 3 | M32: 面试缺考
A33: 王鹏 | B33: 9700100203226 | C33: 01观山湖区朱昌镇 | D33: 04社区工作者 | E33: 124.91 | F33: 83.27 | G33: 41.64 | H33: 80.33 | I33: 40.17 | J33: 81.81 | K33: 1 | L33: 是
A34: 陆开仪 | B34: 9700100408809 | C34: 01观山湖区朱昌镇 | D34: 04社区工作者 | E34: 124.91 | F34: 83.27 | G34: 41.64 | H34: 77 | I34: 38.5 | J34: 80.14 | K34: 2 | L34: 是
A35: 曾约芬 | B35: 9700101528429 | C35: 01观山湖区朱昌镇 | D35: 04社区工作者 | E35: 118.37 | F35: 78.91 | G35: 39.46 | H35: 80.67 | I35: 40.34 | J35: 79.8 | K35: 3 | L35: 是
A36: 简杨 | B36: 9700100512830 | C36: 01观山湖区朱昌镇 | D36: 04社区工作者 | E36: 117.3 | F36: 78.2 | G36: 39.1 | H36: 80 | I36: 40 | J36: 79.1 | K36: 4
A37: 陈晓芳 | B37: 9700100307730 | C37: 01观山湖区朱昌镇 | D37: 04社区工作者 | E37: 119.07 | F37: 79.38 | G37: 39.69 | H37: 75 | I37: 37.5 | J37: 77.19 | K37: 5
A38: 吴悦娜 | B38: 9700100616727 | C38: 01观山湖区朱昌镇 | D38: 04社区工作者 | E38: 117.2 | F38: 78.13 | G38: 39.07 | H38: 75.33 | I38: 37.67 | J38: 76.74 | K38: 6
A39: 王世引 | B39: 9700100204004 | C39: 01观山湖区朱昌镇 | D39: 04社区工作者 | E39: 118.67 | F39: 79.11 | G39: 39.56 | H39: 0 | I39: 0 | J39: 39.56 | K39: 7 | M39: 面试缺考
A40: 黄园园 | B40: 9700100616825 | C40: 01观山湖区朱昌镇 | D40: 04社区工作者 | E40: 117.38 | F40: 78.25 | G40: 39.13 | H40: 0 | I40: 0 | J40: 39.13 | K40: 8 | M40: 面试缺考
A41: 罗昌嗣 | B41: 9700100616508 | C41: 01观山湖区朱昌镇 | D41: 04社区工作者 | E41: 117.3 | F41: 78.2 | G41: 39.1 | H41: 0 | I41: 0 | J41: 39.1 | K41: 9 | M41: 面试缺考
A42: 陈武艺 | B42: 9700101123311 | C42: 02观山湖区金华镇 | D42: 01社区工作者 | E42: 121.57 | F42: 81.05 | G42: 40.53 | H42: 81.67 | I42: 40.84 | J42: 81.37 | K42: 1 | L42: 是
A43: 娄方银 | B43: 9700100412308 | C43: 02观山湖区金华镇 | D43: 01社区工作者 | E43: 116.67 | F43: 77.78 | G43: 38.89 | H43: 84.33 | I43: 42.17 | J43: 81.06 | K43: 2 | L43: 是
A44: 郑仁琴 | B44: 9700100819919 | C44: 02观山湖区金华镇 | D44: 01社区工作者 | E44: 121.9 | F44: 81.27 | G44: 40.64 | H44: 79.33 | I44: 39.67 | J44: 80.31 | K44: 3 | L44: 是
A45: 罗雅琳 | B45: 9700100513626 | C45: 02观山湖区金华镇 | D45: 01社区工作者 | E45: 115.06 | F45: 76.71 | G45: 38.36 | H45: 83 | I45: 41.5 | J45: 79.86 | K45: 4
A46: 宋维涌 | B46: 9700102037527 | C46: 02观山湖区金华镇 | D46: 01社区工作者 | E46: 117.41 | F46: 78.27 | G46: 39.14 | H46: 81.33 | I46: 40.67 | J46: 79.81 | K46: 5
A47: 杨阳 | B47: 9700101326125 | C47: 02观山湖区金华镇 | D47: 01社区工作者 | E47: 116.83 | F47: 77.89 | G47: 38.95 | H47: 81 | I47: 40.5 | J47: 79.45 | K47: 6
A48: 谢丹丹 | B48: 9700100408602 | C48: 02观山湖区金华镇 | D48: 01社区工作者 | E48: 116.83 | F48: 77.89 | G48: 38.95 | H48: 80.33 | I48: 40.17 | J48: 79.12 | K48: 7
A49: 杨龙 | B49: 9700100100321 | C49: 02观山湖区金华镇 | D49: 01社区工作者 | E49: 117.7 | F49: 78.47 | G49: 39.24 | H49: 77.33 | I49: 38.67 | J49: 77.91 | K49: 8
A50: 钟显清 | B50: 9700100409911 | C50: 02观山湖区金华镇 | D50: 01社区工作者 | E50: 116.3 | F50: 77.53 | G50: 38.77 | H50: 76.67 | I50: 38.34 | J50: 77.11 | K50: 9
A51: 吴艳 | B51: 9700101631117 | C51: 03观山湖区宾阳街道办事处 | D51: 01社区工作者 | E51: 120.81 | F51: 80.54 | G51: 40.27 | H51: 83.33 | I51: 41.67 | J51: 81.94 | K51: 1 | L51: 是
A52: 支颢雅 | B52: 9700101833624 | C52: 03观山湖区宾阳街道办事处 | D52: 01社区工作者 | E52: 115.47 | F52: 76.98 | G52: 38.49 | H52: 85.67 | I52: 42.84 | J52: 81.33 | K52: 2 | L52: 是
A53: 龙胜 | B53: 9700100203218 | C53: 03观山湖区宾阳街道办事处 | D53: 01社区工作者 | E53: 115.16 | F53: 76.77 | G53: 38.39 | H53: 85 | I53: 42.5 | J53: 80.89 | K53: 3 | L53: 是
A54: 游先琴 | B54: 9700101326613 | C54: 03观山湖区宾阳街道办事处 | D54: 01社区工作者 | E54: 123.94 | F54: 82.63 | G54: 41.32 | H54: 77.67 | I54: 38.84 | J54: 80.16 | K54: 4 | L54: 是
A55: 李佳 | B55: 9700101528919 | C55: 03观山湖区宾阳街道办事处 | D55: 01社区工作者 | E55: 123.94 | F55: 82.63 | G55: 41.32 | H55: 77.67 | I55: 38.84 | J55: 80.16 | K55: 4 | L55: 是
A56: 石文艳 | B56: 9700101427216 | C56: 03观山湖区宾阳街道办事处 | D56: 01社区工作者 | E56: 118.04 | F56: 78.69 | G56: 39.35 | H56: 80.67 | I56: 40.34 | J56: 79.69 | K56: 6
A57: 司丽平 | B57: 9700100205201 | C57: 03观山湖区宾阳街道办事处 | D57: 01社区工作者 | E57: 115 | F57: 76.67 | G57: 38.34 | H57: 82.33 | I57: 41.17 | J57: 79.51 | K57: 7
A58: 王承栋 | B58: 9700100204013 | C58: 03观山湖区宾阳街道办事处 | D58: 01社区工作者 | E58: 116.23 | F58: 77.49 | G58: 38.75 | H58: 80.67 | I58: 40.34 | J58: 79.09 | K58: 8
A59: 李小荣 | B59: 9700100306122 | C59: 03观山湖区宾阳街道办事处 | D59: 01社区工作者 | E59: 124.04 | F59: 82.69 | G59: 41.35 | H59: 74.67 | I59: 37.34 | J59: 78.69 | K59: 9
A60: 赵智芊 | B60: 9700100100329 | C60: 03观山湖区宾阳街道办事处 | D60: 01社区工作者 | E60: 118.6 | F60: 79.07 | G60: 39.54 | H60: 75.33 | I60: 37.67 | J60: 77.21 | K60: 10
A61: 王帆 | B61: 9700101427221 | C61: 03观山湖区宾阳街道办事处 | D61: 01社区工作者 | E61: 115.13 | F61: 76.75 | G61: 38.38 | H61: 76.67 | I61: 38.34 | J61: 76.72 | K61: 11
A62: 郑妮 | B62: 9700101935216 | C62: 03观山湖区宾阳街道办事处 | D62: 01社区工作者 | E62: 119.57 | F62: 79.71 | G62: 39.86 | H62: 70.33 | I62: 35.17 | J62: 75.03 | K62: 12
A63: 吴俊泽 | B63: 9700101833008 | C63: 03观山湖区宾阳街道办事处 | D63: 01社区工作者 | E63: 119.81 | F63: 79.87 | G63: 39.94 | H63: 70 | I63: 35 | J63: 74.94 | K63: 13
A64: 周灵玲 | B64: 9700100922316 | C64: 03观山湖区宾阳街道办事处 | D64: 01社区工作者 | E64: 123.01 | F64: 82.01 | G64: 41.01 | H64: 0 | I64: 0 | J64: 41.01 | K64: 14 | M64: 面试缺考
A65: 骆单 | B65: 9700101630211 | C65: 03观山湖区宾阳街道办事处 | D65: 01社区工作者 | E65: 121.37 | F65: 80.91 | G65: 40.46 | H65: 0 | I65: 0 | J65: 40.46 | K65: 15 | M65: 面试缺考
A66: 戴青云 | B66: 9700100514406 | C66: 04观山湖区观山街道办事处 | D66: 01社区工作者 | E66: 120.5 | F66: 80.33 | G66: 40.17 | H66: 83.33 | I66: 41.67 | J66: 81.84 | K66: 1 | L66: 是
A67: 陈斌 | B67: 9700100617802 | C67: 04观山湖区观山街道办事处 | D67: 01社区工作者 | E67: 115.33 | F67: =ROUND(E67/1.5,2) -> 76.89 | G67: =ROUND(F67*50%,2) -> 38.45 | H67: 79 | I67: =ROUND(H67*50%,2) -> 39.5 | J67: =G67+I67 -> 77.95 | K67: 2 | L67: 是
A68: 熊习倩 | B68: 9700100718810 | C68: 04观山湖区观山街道办事处 | D68: 01社区工作者 | E68: 118.31 | F68: 78.87 | G68: 39.44 | H68: 76.33 | I68: 38.17 | J68: 77.61 | K68: 3 | L68: 是
A69: 廖朝芹 | B69: 9700101124503 | C69: 04观山湖区观山街道办事处 | D69: 01社区工作者 | E69: 116.4 | F69: 77.6 | G69: 38.8 | H69: 76.67 | I69: 38.34 | J69: 77.14 | K69: 4
A70: 何燕 | B70: 9700100102321 | C70: 04观山湖区观山街道办事处 | D70: 01社区工作者 | E70: 118.1 | F70: 78.73 | G70: 39.37 | H70: 74.67 | I70: 37.34 | J70: 76.71 | K70: 5
A71: 杨通伟 | B71: 9700100408608 | C71: 04观山湖区观山街道办事处 | D71: 01社区工作者 | E71: 116.3 | F71: 77.53 | G71: 38.77 | H71: 75.33 | I71: 37.67 | J71: 76.44 | K71: 6
A72: 王艳 | B72: 9700100820120 | C72: 04观山湖区观山街道办事处 | D72: 01社区工作者 | E72: 116.37 | F72: 77.58 | G72: 38.79 | H72: 72.33 | I72: 36.17 | J72: 74.96 | K72: 7
A73: 滚展区 | B73: 9700101834009 | C73: 04观山湖区观山街道办事处 | D73: 01社区工作者 | E73: 124.45 | F73: 82.97 | G73: 41.49 | H73: 0 | I73: 0 | J73: 41.49 | K73: 8 | M73: 面试缺考
A74: 杨再琴 | B74: 9700100922305 | C74: 04观山湖区观山街道办事处 | D74: 01社区工作者 | E74: 120.03 | F74: 80.02 | G74: 40.01 | H74: 0 | I74: 0 | J74: 40.01 | K74: 9 | M74: 面试缺考
A75: 彭瑢 | B75: 9700101936715 | C75: 05观山湖区云潭街道办事处 | D75: 01社区工作者 | E75: 119.37 | F75: 79.58 | G75: 39.79 | H75: 80 | I75: 40 | J75: 79.79 | K75: 1 | L75: 是
A76: 陶甚男 | B76: 9700101427508 | C76: 05观山湖区云潭街道办事处 | D76: 01社区工作者 | E76: 117.6 | F76: 78.4 | G76: 39.2 | H76: 81 | I76: 40.5 | J76: 79.7 | K76: 2 | L76: 是
A77: 张浪 | B77: 9700101528723 | C77: 05观山湖区云潭街道办事处 | D77: 01社区工作者 | E77: 118.17 | F77: 78.78 | G77: 39.39 | H77: 79.33 | I77: 39.67 | J77: 79.06 | K77: 3 | L77: 是
A78: 杨亚玲 | B78: 9700102038309 | C78: 05观山湖区云潭街道办事处 | D78: 01社区工作者 | E78: 117.2 | F78: 78.13 | G78: 39.07 | H78: 77.67 | I78: 38.84 | J78: 77.91 | K78: 4
A79: 匡泽芳 | B79: 9700100819520 | C79: 05观山湖区云潭街道办事处 | D79: 01社区工作者 | E79: 116.93 | F79: 77.95 | G79: 38.98 | H79: 77.67 | I79: 38.84 | J79: 77.82 | K79: 5
A80: 简超 | B80: 9700101528802 | C80: 05观山湖区云潭街道办事处 | D80: 01社区工作者 | E80: 116.53 | F80: 77.69 | G80: 38.85 | H80: 76.67 | I80: 38.34 | J80: 77.19 | K80: 6
A81: 李庆珊 | B81: 9700100306611 | C81: 05观山湖区云潭街道办事处 | D81: 01社区工作者 | E81: 117.54 | F81: 78.36 | G81: 39.18 | H81: 71.67 | I81: 35.84 | J81: 75.02 | K81: 7
A82: 王祥 | B82: 9700101529113 | C82: 05观山湖区云潭街道办事处 | D82: 01社区工作者 | E82: 119.6 | F82: 79.73 | G82: 39.87 | H82: 0 | I82: 0 | J82: 39.87 | K82: 8 | M82: 面试缺考
A83: 樊垚 | B83: 9700101631302 | C83: 05观山湖区云潭街道办事处 | D83: 01社区工作者 | E83: 118.73 | F83: 79.15 | G83: 39.58 | H83: 0 | I83: 0 | J83: 39.58 | K83: 9 | M83: 面试缺考
A84: 安廷钦 | B84: 9700101427612 | C84: 06观山湖区金阳街道办事处 | D84: 01社区工作者 | E84: 123.14 | F84: 82.09 | G84: 41.05 | H84: 82.33 | I84: 41.17 | J84: 82.22 | K84: 1 | L84: 是
A85: 吴松贤 | B85: 9700101631817 | C85: 06观山湖区金阳街道办事处 | D85: 01社区工作者 | E85: 123.81 | F85: 82.54 | G85: 41.27 | H85: 81.67 | I85: 40.84 | J85: 82.11 | K85: 2 | L85: 是
A86: 金儒梅 | B86: 9700101326126 | C86: 06观山湖区金阳街道办事处 | D86: 01社区工作者 | E86: 121.24 | F86: 80.83 | G86: 40.42 | H86: 82 | I86: 41 | J86: 81.42 | K86: 3 | L86: 是
A87: 黎承涛 | B87: 9700100921607 | C87: 06观山湖区金阳街道办事处 | D87: 01社区工作者 | E87: 122.91 | F87: 81.94 | G87: 40.97 | H87: 80.33 | I87: 40.17 | J87: 81.14 | K87: 4 | L87: 是
A88: 周鹏 | B88: 9700101935720 | C88: 06观山湖区金阳街道办事处 | D88: 01社区工作者 | E88: 119.63 | F88: 79.75 | G88: 39.88 | H88: 81.67 | I88: 40.84 | J88: 80.72 | K88: 5 | L88: 是
A89: 何思静 | B89: 9700101936901 | C89: 06观山湖区金阳街道办事处 | D89: 01社区工作者 | E89: 120.17 | F89: 80.11 | G89: 40.06 | H89: 80.67 | I89: 40.34 | J89: 80.4 | K89: 6 | L89: 是
A90: 刘文龙 | B90: 9700101935528 | C90: 06观山湖区金阳街道办事处 | D90: 01社区工作者 | E90: 117.1 | F90: 78.07 | G90: 39.04 | H90: 82.67 | I90: 41.34 | J90: 80.38 | K90: 7 | L90: 是
A91: 李孟玉 | B91: 9700100203802 | C91: 06观山湖区金阳街道办事处 | D91: 01社区工作者 | E91: 123.85 | F91: 82.57 | G91: 41.29 | H91: 78 | I91: 39 | J91: 80.29 | K91: 8 | L91: 是
A92: 雷顺洁 | B92: 9700102037221 | C92: 06观山湖区金阳街道办事处 | D92: 01社区工作者 | E92: 122.37 | F92: 81.58 | G92: 40.79 | H92: 78.67 | I92: 39.34 | J92: 80.13 | K92: 9
A93: 覃芳芳 | B93: 9700100411610 | C93: 06观山湖区金阳街道办事处 | D93: 01社区工作者 | E93: 123.01 | F93: 82.01 | G93: 41.01 | H93: 77.67 | I93: 38.84 | J93: 79.85 | K93: 10
A94: 李方红 | B94: 9700101326220 | C94: 06观山湖区金阳街道办事处 | D94: 01社区工作者 | E94: 118.14 | F94: 78.76 | G94: 39.38 | H94: 79.67 | I94: 39.84 | J94: 79.22 | K94: 11
A95: 彭婷 | B95: 9700101528715 | C95: 06观山湖区金阳街道办事处 | D95: 01社区工作者 | E95: 118.2 | F95: 78.8 | G95: 39.4 | H95: 79 | I95: 39.5 | J95: 78.9 | K95: 12
A96: 王志娟 | B96: 9700101833821 | C96: 06观山湖区金阳街道办事处 | D96: 01社区工作者 | E96: 116.9 | F96: 77.93 | G96: 38.97 | H96: 79.67 | I96: 39.84 | J96: 78.81 | K96: 13
A97: 任晓会 | B97: 9700101428127 | C97: 06观山湖区金阳街道办事处 | D97: 01社区工作者 | E97: 116.83 | F97: 77.89 | G97: 38.95 | H97: 79.67 | I97: 39.84 | J97: 78.79 | K97: 14
A98: 王萌 | B98: 9700101631015 | C98: 06观山湖区金阳街道办事处 | D98: 01社区工作者 | E98: 119.1 | F98: 79.4 | G98: 39.7 | H98: 76.67 | I98: 38.34 | J98: 78.04 | K98: 15
A99: 宋沛霖 | B99: 9700101225429 | C99: 06观山湖区金阳街道办事处 | D99: 01社区工作者 | E99: 117.1 | F99: 78.07 | G99: 39.04 | H99: 77.67 | I99: 38.84 | J99: 77.88 | K99: 16
A100: 刘靖 | B100: 9700101834118 | C100: 06观山湖区金阳街道办事处 | D100: 01社区工作者 | E100: 118 | F100: 78.67 | G100: 39.34 | H100: 76.67 | I100: 38.34 | J100: 77.68 | K100: 17
A101: 黄迅 | B101: 9700100204823 | C101: 06观山湖区金阳街道办事处 | D101: 01社区工作者 | E101: 120.27 | F101: 80.18 | G101: 40.09 | H101: 74.33 | I101: 37.17 | J101: 77.26 | K101: 18
A102: 潘方欣 | B102: 9700101629816 | C102: 06观山湖区金阳街道办事处 | D102: 01社区工作者 | E102: 117.27 | F102: 78.18 | G102: 39.09 | H102: 76.33 | I102: 38.17 | J102: 77.26 | K102: 18
A103: 李世林 | B103: 9700101630622 | C103: 06观山湖区金阳街道办事处 | D103: 01社区工作者 | E103: 116.43 | F103: 77.62 | G103: 38.81 | H103: 74.67 | I103: 37.34 | J103: 76.15 | K103: 20
A104: 勾林 | B104: 9700101832920 | C104: 06观山湖区金阳街道办事处 | D104: 01社区工作者 | E104: 120.74 | F104: 80.49 | G104: 40.25 | H104: 0 | I104: 0 | J104: 40.25 | K104: 21 | M104: 面试缺考
A105: 肖瑶 | B105: 9700100204622 | C105: 06观山湖区金阳街道办事处 | D105: 01社区工作者 | E105: 116.77 | F105: 77.85 | G105: 38.93 | H105: 0 | I105: 0 | J105: 38.93 | K105: 22 | M105: 面试缺考
A106: 蒋忱岑 | B106: 9700101427318 | C106: 06观山湖区金阳街道办事处 | D106: 01社区工作者 | E106: 116.57 | F106: 77.71 | G106: 38.86 | H106: 0 | I106: 0 | J106: 38.86 | K106: 23 | M106: 面试缺考
A107: 蒋奎 | B107: 9700100617604 | C107: 06观山湖区金阳街道办事处 | D107: 01社区工作者 | E107: 116.4 | F107: 77.6 | G107: 38.8 | H107: 0 | I107: 0 | J107: 38.8 | K107: 24 | M107: 面试缺考
A108: 段亭聿 | B108: 9700101630116 | C108: 06观山湖区金阳街道办事处 | D108: 02社区工作者 | E108: 116.93 | F108: 77.95 | G108: 38.98 | H108: 82.67 | I108: 41.34 | J108: 80.32 | K108: 1 | L108: 是
A109: 冯念 | B109: 9700100305708 | C109: 06观山湖区金阳街道办事处 | D109: 02社区工作者 | E109: 121.77 | F109: 81.18 | G109: 40.59 | H109: 77 | I109: 38.5 | J109: 79.09 | K109: 2 | L109: 是
A110: 张琦霁 | B110: 9700101630416 | C110: 06观山湖区金阳街道办事处 | D110: 02社区工作者 | E110: 116.93 | F110: 77.95 | G110: 38.98 | H110: 79 | I110: 39.5 | J110: 78.48 | K110: 3 | L110: 是
A111: 萧椿茂 | B111: 9700101427823 | C111: 06观山湖区金阳街道办事处 | D111: 02社区工作者 | E111: 118.31 | F111: 78.87 | G111: 39.44 | H111: 77.33 | I111: 38.67 | J111: 78.11 | K111: 4 | L111: 是
A112: 梁琼 | B112: 9700100204728 | C112: 06观山湖区金阳街道办事处 | D112: 02社区工作者 | E112: 119.17 | F112: 79.45 | G112: 39.73 | H112: 75.67 | I112: 37.84 | J112: 77.57 | K112: 5
A113: 韩贵碟 | B113: 9700100820119 | C113: 06观山湖区金阳街道办事处 | D113: 02社区工作者 | E113: 119.04 | F113: 79.36 | G113: 39.68 | H113: 74 | I113: 37 | J113: 76.68 | K113: 6
A114: 谢婷 | B114: 9700101528603 | C114: 06观山湖区金阳街道办事处 | D114: 02社区工作者 | E114: 116.77 | F114: 77.85 | G114: 38.93 | H114: 75.33 | I114: 37.67 | J114: 76.6 | K114: 7
A115: 段天海 | B115: 9700101630228 | C115: 06观山湖区金阳街道办事处 | D115: 02社区工作者 | E115: 116.73 | F115: 77.82 | G115: 38.91 | H115: 74.33 | I115: 37.17 | J115: 76.08 | K115: 8
A116: 刘楚宇 | B116: 9700100100905 | C116: 06观山湖区金阳街道办事处 | D116: 02社区工作者 | E116: 121.08 | F116: 80.72 | G116: 40.36 | H116: 0 | I116: 0 | J116: 40.36 | K116: 9 | M116: 面试缺考
A117: 蒙卓珥 | B117: 9700100617927 | C117: 06观山湖区金阳街道办事处 | D117: 02社区工作者 | E117: 117.1 | F117: 78.07 | G117: 39.04 | H117: 0 | I117: 0 | J117: 39.04 | K117: 10 | M117: 面试缺考
A118: 李辉亚 | B118: 9700101832730 | C118: 06观山湖区金阳街道办事处 | D118: 02社区工作者 | E118: 116.23 | F118: 77.49 | G118: 38.75 | H118: 0 | I118: 0 | J118: 38.75 | K118: 11 | M118: 面试缺考
A119: 姚芳芳 | B119: 9700101529516 | C119: 06观山湖区金阳街道办事处 | D119: 02社区工作者 | E119: 116.14 | F119: 77.43 | G119: 38.72 | H119: 0 | I119: 0 | J119: 38.72 | K119: 12 | M119: 面试缺考
A120: 谭虹 | B120: 9700101123723 | C120: 06观山湖区金阳街道办事处 | D120: 03社区工作者 | E120: 113.66 | F120: 75.77 | G120: 37.89 | H120: 79.33 | I120: 39.67 | J120: 77.56 | K120: 1 | L120: 是
A121: 李啟琴 | B121: 9700100617612 | C121: 06观山湖区金阳街道办事处 | D121: 03社区工作者 | E121: 117.77 | F121: 78.51 | G121: 39.26 | H121: 75.67 | I121: 37.84 | J121: 77.1 | K121: 2
A122: 陈琳 | B122: 9700101529507 | C122: 06观山湖区金阳街道办事处 | D122: 03社区工作者 | E122: 115.4 | F122: 76.93 | G122: 38.47 | H122: 73 | I122: 36.5 | J122: 74.97 | K122: 3
A123: 王斯晨 | B123: 9700100513708 | C123: 06观山湖区金阳街道办事处 | D123: 04社区工作者 | E123: 124.81 | F123: 83.21 | G123: 41.61 | H123: 81 | I123: 40.5 | J123: 82.11 | K123: 1 | L123: 是
A124: 王阳春 | B124: 9700101936703 | C124: 06观山湖区金阳街道办事处 | D124: 04社区工作者 | E124: 119.74 | F124: 79.83 | G124: 39.92 | H124: 83 | I124: 41.5 | J124: 81.42 | K124: 2 | L124: 是
A125: 鲁恒江 | B125: 9700100512816 | C125: 06观山湖区金阳街道办事处 | D125: 04社区工作者 | E125: 119.16 | F125: 79.44 | G125: 39.72 | H125: 82.33 | I125: 41.17 | J125: 80.89 | K125: 3 | L125: 是
A126: 王宗华 | B126: 9700101936518 | C126: 06观山湖区金阳街道办事处 | D126: 04社区工作者 | E126: 121.67 | F126: 81.11 | G126: 40.56 | H126: 80 | I126: 40 | J126: 80.56 | K126: 4 | L126: 是
A127: 张满 | B127: 9700101529521 | C127: 06观山湖区金阳街道办事处 | D127: 04社区工作者 | E127: 118.2 | F127: 78.8 | G127: 39.4 | H127: 81.67 | I127: 40.84 | J127: 80.24 | K127: 5
A128: 史文千 | B128: 9700101630225 | C128: 06观山湖区金阳街道办事处 | D128: 04社区工作者 | E128: 122.27 | F128: 81.51 | G128: 40.76 | H128: 76 | I128: 38 | J128: 78.76 | K128: 6
A129: 林芳 | B129: 9700101833412 | C129: 06观山湖区金阳街道办事处 | D129: 04社区工作者 | E129: 118.07 | F129: 78.71 | G129: 39.36 | H129: 78.33 | I129: 39.17 | J129: 78.53 | K129: 7
A130: 丁阳 | B130: 9700101528706 | C130: 06观山湖区金阳街道办事处 | D130: 04社区工作者 | E130: 120.24 | F130: 80.16 | G130: 40.08 | H130: 75.67 | I130: 37.84 | J130: 77.92 | K130: 8
A131: 刘文冰 | B131: 9700100100702 | C131: 06观山湖区金阳街道办事处 | D131: 04社区工作者 | E131: 118.6 | F131: =ROUND(E131/1.5,2) -> 79.07 | G131: =ROUND(F131*50%,2) -> 39.54 | H131: 76 | I131: =ROUND(H131*50%,2) -> 38 | J131: =G131+I131 -> 77.54 | K131: 9
A132: 李春燕 | B132: 9700100307610 | C132: 06观山湖区金阳街道办事处 | D132: 04社区工作者 | E132: 119.91 | F132: 79.94 | G132: 39.97 | H132: 72.33 | I132: 36.17 | J132: 76.14 | K132: 10
A133: 毛春野 | B133: 9700100204612 | C133: 06观山湖区金阳街道办事处 | D133: 04社区工作者 | E133: 121.97 | F133: 81.31 | G133: 40.66 | H133: 68 | I133: 34 | J133: 74.66 | K133: 11
A134: 丛雪 | B134: 9700100409923 | C134: 06观山湖区金阳街道办事处 | D134: 04社区工作者 | E134: 118.1 | F134: 78.73 | G134: 39.37 | H134: 68 | I134: 34 | J134: 73.37 | K134: 12
A135: 谢志坚 | B135: 9700100305730 | C135: 07观山湖区世纪城街道办事处 | D135: 01社区工作者 | E135: 120.04 | F135: 80.03 | G135: 40.02 | H135: 85.67 | I135: 42.84 | J135: 82.86 | K135: 1 | L135: 是
A136: 谢含冰 | B136: 9700101631625 | C136: 07观山湖区世纪城街道办事处 | D136: 01社区工作者 | E136: 120.6 | F136: 80.4 | G136: 40.2 | H136: 83.33 | I136: 41.67 | J136: 81.87 | K136: 2 | L136: 是
A137: 万蕾蕾 | B137: 9700100617610 | C137: 07观山湖区世纪城街道办事处 | D137: 01社区工作者 | E137: 119.87 | F137: 79.91 | G137: 39.96 | H137: 83.67 | I137: 41.84 | J137: 81.8 | K137: 3 | L137: 是
A138: 黄芳 | B138: 9700100100619 | C138: 07观山湖区世纪城街道办事处 | D138: 01社区工作者 | E138: 119.91 | F138: 79.94 | G138: 39.97 | H138: 83.33 | I138: 41.67 | J138: 81.64 | K138: 4 | L138: 是
A139: 田雅萌 | B139: 9700101123202 | C139: 07观山湖区世纪城街道办事处 | D139: 01社区工作者 | E139: 115.13 | F139: 76.75 | G139: 38.38 | H139: 85.67 | I139: 42.84 | J139: 81.22 | K139: 5 | L139: 是
A140: 许颖 | B140: 9700100307801 | C140: 07观山湖区世纪城街道办事处 | D140: 01社区工作者 | E140: 121.11 | F140: 80.74 | G140: 40.37 | H140: 80.76 | I140: 40.38 | J140: 80.75 | K140: 6 | L140: 是
A141: 汪娅丽 | B141: 9700100515207 | C141: 07观山湖区世纪城街道办事处 | D141: 01社区工作者 | E141: 114.56 | F141: 76.37 | G141: 38.19 | H141: 84.67 | I141: 42.34 | J141: 80.53 | K141: 7 | L141: 是
A142: 谌瑶 | B142: 9700101833025 | C142: 07观山湖区世纪城街道办事处 | D142: 01社区工作者 | E142: 115.13 | F142: 76.75 | G142: 38.38 | H142: 83.67 | I142: 41.84 | J142: 80.22 | K142: 8
A143: 张龙雄 | B143: 9700101935624 | C143: 07观山湖区世纪城街道办事处 | D143: 01社区工作者 | E143: 114.8 | F143: 76.53 | G143: 38.27 | H143: 83.5 | I143: 41.75 | J143: 80.02 | K143: 9
A144: 陈思运 | B144: 9700102038401 | C144: 07观山湖区世纪城街道办事处 | D144: 01社区工作者 | E144: 115.2 | F144: 76.8 | G144: 38.4 | H144: 82.67 | I144: 41.34 | J144: 79.74 | K144: 10
A145: 刘永坤 | B145: 9700100615408 | C145: 07观山湖区世纪城街道办事处 | D145: 01社区工作者 | E145: 114.43 | F145: 76.29 | G145: 38.15 | H145: 83 | I145: 41.5 | J145: 79.65 | K145: 11
A146: 陈小娅 | B146: 9700100718708 | C146: 07观山湖区世纪城街道办事处 | D146: 01社区工作者 | E146: 119.07 | F146: 79.38 | G146: 39.69 | H146: 79.67 | I146: 39.84 | J146: 79.53 | K146: 12
A147: 方军梅 | B147: 9700100513013 | C147: 07观山湖区世纪城街道办事处 | D147: 01社区工作者 | E147: 114.93 | F147: 76.62 | G147: 38.31 | H147: 82.17 | I147: 41.09 | J147: 79.4 | K147: 13
A148: 郁景茜 | B148: 9700101631420 | C148: 07观山湖区世纪城街道办事处 | D148: 01社区工作者 | E148: 115.03 | F148: 76.69 | G148: 38.35 | H148: 82 | I148: 41 | J148: 79.35 | K148: 14
A149: 冯小艳 | B149: 9700100615812 | C149: 07观山湖区世纪城街道办事处 | D149: 01社区工作者 | E149: 115.4 | F149: 76.93 | G149: 38.47 | H149: 81 | I149: 40.5 | J149: 78.97 | K149: 15
A150: 牟丽芳 | B150: 9700100513224 | C150: 07观山湖区世纪城街道办事处 | D150: 01社区工作者 | E150: 115.93 | F150: 77.29 | G150: 38.65 | H150: 80.33 | I150: 40.17 | J150: 78.82 | K150: 16
A151: 张珺 | B151: 9700101833206 | C151: 07观山湖区世纪城街道办事处 | D151: 01社区工作者 | E151: 115 | F151: 76.67 | G151: 38.34 | H151: 80.67 | I151: 40.34 | J151: 78.68 | K151: 17
A152: 夏婷 | B152: 9700102037116 | C152: 07观山湖区世纪城街道办事处 | D152: 01社区工作者 | E152: 114.73 | F152: 76.49 | G152: 38.25 | H152: 79.33 | I152: 39.67 | J152: 77.92 | K152: 18
A153: 杨夏禾 | B153: 9700100410020 | C153: 07观山湖区世纪城街道办事处 | D153: 01社区工作者 | E153: 115.91 | F153: 77.27 | G153: 38.64 | H153: 75.67 | I153: 37.84 | J153: 76.48 | K153: 19
A154: 高振富 | B154: 9700100204910 | C154: 07观山湖区世纪城街道办事处 | D154: 01社区工作者 | E154: 116.83 | F154: 77.89 | G154: 38.95 | H154: 0 | I154: 0 | J154: 38.95 | K154: 20 | M154: 面试缺考
A155: 李芳 | B155: 9700101936307 | C155: 07观山湖区世纪城街道办事处 | D155: 01社区工作者 | E155: 114.33 | F155: 76.22 | G155: 38.11 | H155: 0 | I155: 0 | J155: 38.11 | K155: 21 | M155: 面试缺考
A156: 何长 | B156: 9700101326515 | C156: 07观山湖区世纪城街道办事处 | D156: 02社区工作者 | E156: 119.7 | F156: 79.8 | G156: 39.9 | H156: 80.33 | I156: 40.17 | J156: 80.07 | K156: 1 | L156: 是
A157: 朱寒梅 | B157: 9700101833310 | C157: 07观山湖区世纪城街道办事处 | D157: 02社区工作者 | E157: 117.4 | F157: 78.27 | G157: 39.14 | H157: 81 | I157: 40.5 | J157: 79.64 | K157: 2 | L157: 是
A158: 朱俊杰 | B158: 9700100101024 | C158: 07观山湖区世纪城街道办事处 | D158: 02社区工作者 | E158: 119.63 | F158: 79.75 | G158: 39.88 | H158: 79.33 | I158: 39.67 | J158: 79.55 | K158: 3 | L158: 是
A159: 罗奇先 | B159: 9700100514320 | C159: 07观山湖区世纪城街道办事处 | D159: 02社区工作者 | E159: 118.43 | F159: 78.95 | G159: 39.48 | H159: 79.67 | I159: 39.84 | J159: 79.32 | K159: 4 | L159: 是
A160: 田凤燕 | B160: 9700101528617 | C160: 07观山湖区世纪城街道办事处 | D160: 02社区工作者 | E160: 116.48 | F160: 77.65 | G160: 38.83 | H160: 80.67 | I160: 40.34 | J160: 79.17 | K160: 5 | L160: 是
A161: 龙飘洋 | B161: 9700100410022 | C161: 07观山湖区世纪城街道办事处 | D161: 02社区工作者 | E161: 114.33 | F161: 76.22 | G161: 38.11 | H161: 82 | I161: 41 | J161: 79.11 | K161: 6 | L161: 是
A162: 文珏 | B162: 9700100719408 | C162: 07观山湖区世纪城街道办事处 | D162: 02社区工作者 | E162: 122.24 | F162: 81.49 | G162: 40.75 | H162: 75 | I162: 37.5 | J162: 78.25 | K162: 7
A163: 陈晓蝶 | B163: 9700101428106 | C163: 07观山湖区世纪城街道办事处 | D163: 02社区工作者 | E163: 114.13 | F163: 76.09 | G163: 38.05 | H163: 80.33 | I163: 40.17 | J163: 78.22 | K163: 8
A164: 黄澳 | B164: 9700101528226 | C164: 07观山湖区世纪城街道办事处 | D164: 02社区工作者 | E164: 115.77 | F164: 77.18 | G164: 38.59 | H164: 79 | I164: 39.5 | J164: 78.09 | K164: 9
A165: 何治颖 | B165: 9700100203526 | C165: 07观山湖区世纪城街道办事处 | D165: 02社区工作者 | E165: 117.54 | F165: 78.36 | G165: 39.18 | H165: 77.67 | I165: 38.84 | J165: 78.02 | K165: 10
A166: 祝媚媚 | B166: 9700100307813 | C166: 07观山湖区世纪城街道办事处 | D166: 02社区工作者 | E166: 116.17 | F166: 77.45 | G166: 38.73 | H166: 74.33 | I166: 37.17 | J166: 75.9 | K166: 11
A167: 田萍萍 | B167: 9700100616319 | C167: 07观山湖区世纪城街道办事处 | D167: 02社区工作者 | E167: 114.66 | F167: 76.44 | G167: 38.22 | H167: 70.33 | I167: 35.17 | J167: 73.39 | K167: 12
A168: 敖进丽 | B168: 9700101630329 | C168: 07观山湖区世纪城街道办事处 | D168: 02社区工作者 | E168: 115.77 | F168: 77.18 | G168: 38.59 | H168: 68.33 | I168: 34.17 | J168: 72.76 | K168: 13
A169: 吴珊 | B169: 9700101631620 | C169: 07观山湖区世纪城街道办事处 | D169: 02社区工作者 | E169: 115.5 | F169: 77 | G169: 38.5 | H169: 64.67 | I169: 32.34 | J169: 70.84 | K169: 14
A170: 黎鹏 | B170: 9700100100416 | C170: 07观山湖区世纪城街道办事处 | D170: 02社区工作者 | E170: 117.37 | F170: 78.25 | G170: 39.13 | H170: 60 | I170: 30 | J170: 69.13 | K170: 15
A171: 黄燕郎 | B171: 9700100617010 | C171: 07观山湖区世纪城街道办事处 | D171: 02社区工作者 | E171: 122.94 | F171: 81.96 | G171: 40.98 | H171: 0 | I171: 0 | J171: 40.98 | K171: 16 | M171: 面试缺考
A172: 李成彦 | B172: 9700101325930 | C172: 07观山湖区世纪城街道办事处 | D172: 02社区工作者 | E172: 119.2 | F172: 79.47 | G172: 39.74 | H172: 0 | I172: 0 | J172: 39.74 | K172: 17 | M172: 面试缺考
A173: 李双红 | B173: 9700101325712 | C173: 07观山湖区世纪城街道办事处 | D173: 02社区工作者 | E173: 118.61 | F173: 79.07 | G173: 39.54 | H173: 0 | I173: 0 | J173: 39.54 | K173: 18 | M173: 面试缺考
A174: 覃慧莎 | B174: 9700100102004 | C174: 07观山湖区世纪城街道办事处 | D174: 03社区工作者 | E174: 120.17 | F174: 80.11 | G174: 40.06 | H174: 86 | I174: 43 | J174: 83.06 | K174: 1 | L174: 是
A175: 杨超 | B175: 9700100307106 | C175: 07观山湖区世纪城街道办事处 | D175: 03社区工作者 | E175: 120.4 | F175: 80.27 | G175: 40.14 | H175: 85.57 | I175: 42.79 | J175: 82.93 | K175: 2
A176: 熊小庆 | B176: 9700100411720 | C176: 07观山湖区世纪城街道办事处 | D176: 03社区工作者 | E176: 115.9 | F176: 77.27 | G176: 38.64 | H176: 83.33 | I176: 41.67 | J176: 80.31 | K176: 3
A177: 徐楚云 | B177: 9700101529602 | C177: 07观山湖区世纪城街道办事处 | D177: 04社区工作者 | E177: 126.58 | F177: 84.39 | G177: 42.2 | H177: 82.33 | I177: 41.17 | J177: 83.37 | K177: 1 | L177: 是
A178: 冯明明 | B178: 9700100100309 | C178: 07观山湖区世纪城街道办事处 | D178: 04社区工作者 | E178: 117.54 | F178: 78.36 | G178: 39.18 | H178: 85.67 | I178: 42.84 | J178: 82.02 | K178: 2 | L178: 是
A179: 曹文博 | B179: 9700100101319 | C179: 07观山湖区世纪城街道办事处 | D179: 04社区工作者 | E179: 117.06 | F179: 78.04 | G179: 39.02 | H179: 84.33 | I179: 42.17 | J179: 81.19 | K179: 3 | L179: 是
A180: 罗滨 | B180: 9700102037327 | C180: 07观山湖区世纪城街道办事处 | D180: 04社区工作者 | E180: 117.36 | F180: 78.24 | G180: 39.12 | H180: 83 | I180: 41.5 | J180: 80.62 | K180: 4 | L180: 是
A181: 樊洁 | B181: 9700100205428 | C181: 07观山湖区世纪城街道办事处 | D181: 04社区工作者 | E181: 118.97 | F181: 79.31 | G181: 39.66 | H181: 76.33 | I181: 38.17 | J181: 77.83 | K181: 5
A182: 李霏妍 | B182: 9700100820812 | C182: 07观山湖区世纪城街道办事处 | D182: 04社区工作者 | E182: 117.6 | F182: 78.4 | G182: 39.2 | H182: 74.33 | I182: 37.17 | J182: 76.37 | K182: 6
A183: 苏冬花 | B183: 9700101122919 | C183: 07观山湖区世纪城街道办事处 | D183: 04社区工作者 | E183: 119.17 | F183: 79.45 | G183: 39.73 | H183: 70 | I183: 35 | J183: 74.73 | K183: 7
A184: 袁欢 | B184: 9700102037918 | C184: 07观山湖区世纪城街道办事处 | D184: 04社区工作者 | E184: 122.24 | F184: 81.49 | G184: 40.75 | H184: 0 | I184: 0 | J184: 40.75 | K184: 8 | M184: 面试缺考
A185: 汪亭汛 | B185: 9700100515006 | C185: 07观山湖区世纪城街道办事处 | D185: 04社区工作者 | E185: 122.01 | F185: 81.34 | G185: 40.67 | H185: 0 | I185: 0 | J185: 40.67 | K185: 9 | M185: 面试缺考
A186: 李梅 | B186: 9700100410019 | C186: 07观山湖区世纪城街道办事处 | D186: 04社区工作者 | E186: 119.87 | F186: 79.91 | G186: 39.96 | H186: 0 | I186: 0 | J186: 39.96 | K186: 10 | M186: 面试缺考
A187: 张艺江 | B187: 9700100410530 | C187: 07观山湖区世纪城街道办事处 | D187: 04社区工作者 | E187: 118.64 | F187: 79.09 | G187: 39.55 | H187: 0 | I187: 0 | J187: 39.55 | K187: 11 | M187: 面试缺考
A188: 汪洋 | B188: 9700100513613 | C188: 07观山湖区世纪城街道办事处 | D188: 04社区工作者 | E188: 116.93 | F188: 77.95 | G188: 38.98 | H188: 0 | I188: 0 | J188: 38.98 | K188: 12 | M188: 面试缺考
A189: 谢静梵 | B189: 9700101124426 | C189: 08观山湖区金华园街道办事处 | D189: 01社区工作者 | E189: 121.91 | F189: 81.27 | G189: 40.64 | H189: 86 | I189: 43 | J189: 83.64 | K189: 1 | L189: 是
A190: 李越琪 | B190: 9700100820504 | C190: 08观山湖区金华园街道办事处 | D190: 01社区工作者 | E190: 119.54 | F190: 79.69 | G190: 39.85 | H190: 84.17 | I190: 42.09 | J190: 81.94 | K190: 2 | L190: 是
A191: 吴瑜 | B191: 9700101326726 | C191: 08观山湖区金华园街道办事处 | D191: 01社区工作者 | E191: 118.1 | F191: 78.73 | G191: 39.37 | H191: 85 | I191: 42.5 | J191: 81.87 | K191: 3 | L191: 是
A192: 肖园 | B192: 9700101528816 | C192: 08观山湖区金华园街道办事处 | D192: 01社区工作者 | E192: 119.76 | F192: 79.84 | G192: 39.92 | H192: 83.5 | I192: 41.75 | J192: 81.67 | K192: 4 | L192: 是
A193: 黎志亮 | B193: 9700101936013 | C193: 08观山湖区金华园街道办事处 | D193: 01社区工作者 | E193: 120.8 | F193: 80.53 | G193: 40.27 | H193: 82.67 | I193: 41.34 | J193: 81.61 | K193: 5 | L193: 是
A194: 汪洪丹 | B194: 9700100820013 | C194: 08观山湖区金华园街道办事处 | D194: 01社区工作者 | E194: 123.81 | F194: 82.54 | G194: 41.27 | H194: 80.5 | I194: 40.25 | J194: 81.52 | K194: 6 | L194: 是
A195: 贺朋希 | B195: 9700100409819 | C195: 08观山湖区金华园街道办事处 | D195: 01社区工作者 | E195: 123.01 | F195: =ROUND(E195/1.5,2) -> 82.01 | G195: =ROUND(F195*50%,2) -> 41.01 | H195: 80 | I195: =ROUND(H195*50%,2) -> 40 | J195: =G195+I195 -> 81.01 | K195: 7 | L195: 是
A196: 朱梅 | B196: 9700101833726 | C196: 08观山湖区金华园街道办事处 | D196: 01社区工作者 | E196: 117.8 | F196: 78.53 | G196: 39.27 | H196: 83 | I196: 41.5 | J196: 80.77 | K196: 8 | L196: 是
A197: 代华君 | B197: 9700100820626 | C197: 08观山湖区金华园街道办事处 | D197: 01社区工作者 | E197: 121.21 | F197: 80.81 | G197: 40.41 | H197: 80.67 | I197: 40.34 | J197: 80.75 | K197: 9 | L197: 是
A198: 胡靖 | B198: 9700101225118 | C198: 08观山湖区金华园街道办事处 | D198: 01社区工作者 | E198: 122.74 | F198: 81.83 | G198: 40.92 | H198: 78.83 | I198: 39.42 | J198: 80.34 | K198: 10 | L198: 是
A199: 练东 | B199: 9700101122903 | C199: 08观山湖区金华园街道办事处 | D199: 01社区工作者 | E199: 119.1 | F199: 79.4 | G199: 39.7 | H199: 81.17 | I199: 40.59 | J199: 80.29 | K199: 11
A200: 袁应林 | B200: 9700100513228 | C200: 08观山湖区金华园街道办事处 | D200: 01社区工作者 | E200: 117.46 | F200: 78.31 | G200: 39.16 | H200: 81.67 | I200: 40.84 | J200: 80 | K200: 12
... 117 more rows

Sheet Sheet1
